[Event "1st Turkish League 2017"]
[Site "Konya"]
[Date "2017.07.19"]
[Round "4"]
[White "Yorgun, Yaren Naz"]
[Black "Elma, Muge"]
[Result "1/2-1/2"]
[ECO "B23"]
[WhiteElo "1733"]
[BlackElo "1513"]
[Annotator "NA"]
[PlyCount "66"]
[EventType "team-tourn"]
[EventCountry "TUR"]
[SourceTitle "playchess.com"]
[Source "ChessBase"]
[SourceQuality "1"]
[TimeControl "5400+30"]

1. e4 {[%emt 0:00:30]} c5 {[%emt 0:01:00]} 2. Nc3 {[%emt 0:00:00]} d6 {[%emt 0:00:30]} 3. f4 {[%emt 0:00:00]} Nc6 {[%emt 0:01:30]} 4. Bb5 {[%emt 0:00:00]} e6 {[%emt 0:01:30]} 5. Nf3 {[%emt 0:01:00]} Nge7 {[%emt 0:00:30]} 6. O-O {[%emt 0:01:30]} a6 {[%emt 0:01:30]} 7. Bxc6+ {[%emt 0:00:00]} Nxc6 {[%emt 0:01:30]} 8. Qe1 {[%emt 0:03:00]} Be7 {[%emt 0:03:30]} 9. Qg3 {[%emt 0:05:30]} O-O {[%emt 0:01:30]} 10. d3 {[%emt 0:02:30]} Re8 {[%emt 0:04:30]} 11. Nd1 {[%emt 0:04:30]} d5 {[%emt 0:11:30]} 12. Ne3 {[%emt 0:03:30]} dxe4 {[%emt 0:04:30]} 13. dxe4 {[%emt 0:00:30]} Nd4 {[%emt 0:01:30]} 14. Nxd4 {[%emt 0:03:30]} Qxd4 {[%emt 0:03:30]} 15. Qf3 {[%emt 0:01:30]} Qd6 {[%emt 0:07:30]} 16. b3 {[%emt 0:06:30]} Qc6 {[%emt 0:07:30]} 17. Bb2 {[%emt 0:02:30]} Bf8 {[%emt 0:01:30]} 18. Rae1 {[%emt 0:20:30]} f5 {[%emt 0:10:30]} 19. Qg3 {[%emt 0:00:30]} b5 {[%emt 0:03:30]} 20. Qg5 {[%emt 0:02:30]} c4 {[%emt 0:07:30]} 21. Be5 {[%emt 0:06:30]} Qc5 {[%emt 0:02:30]} 22. Kh1 {[%emt 0:01:30]} cxb3 {[%emt 0:00:30]} 23. cxb3 {[%emt 0:01:30]} Qe7 {[%emt 0:00:30]} 24. Qg3 {[%emt 0:02:30]} Qf7 {[%emt 0:01:30]} 25. exf5 {[%emt 0:07:30]} exf5 {[%emt 0:00:00]} 26. Rc1 {[%emt 0:02:30]} Be6 {[%emt 0:04:45]} 27. Rc7 {[%emt 0:01:30]} Re7 {[%emt 0:00:18]} 28. Rxe7 {[%emt 0:03:49]} Bxe7 {[%emt 0:01:12]} 29. Nc2 {[%emt 0:01:33]} Bf6 {[%emt 0:02:37]} 30. Nd4 {[%emt 0:00:19]} Rc8 {[%emt 0:02:27]} 31. Nxe6 {[%emt 0:01:47]} Qxe6 {[%emt 0:00:10]} 32. Bxf6 {[%emt 0:00:00]} Qxf6 {[%emt 0:00:09]} 33. Qd3 {[%emt 0:03:09]} Qe6 {[%emt 0:01:48]} 1/2-1/2

[Event "1st Turkish League 2017"]
[Site "Konya"]
[Date "2017.07.19"]
[Round "4"]
[White "Demirtas, Hafize"]
[Black "Erece, Ece Alkim"]
[Result "1/2-1/2"]
[ECO "B27"]
[WhiteElo "1676"]
[BlackElo "1829"]
[Annotator "NA"]
[PlyCount "101"]
[EventType "team-tourn"]
[EventCountry "TUR"]
[SourceTitle "playchess.com"]
[Source "ChessBase"]
[SourceQuality "1"]
[TimeControl "5400+30"]

1. e4 c5 2. Nf3 g6 3. c3 Bg7 4. d4 cxd4 5. cxd4 d5 6. e5 Bg4 7. Bb5+ Nd7 8. Nbd2 e6 9. O-O Ne7 10. h3 Bxf3 11. Nxf3 O-O 12. Bxd7 Qxd7 13. Qd3 f6 $14 14. exf6 Bxf6 15. Re1 Nc6 16. Bd2 Rfe8 17. Rac1 e5 18. dxe5 Nxe5 19. Nxe5 Bxe5 20. Rc5 Rad8 21. f4 Bxb2 22. Rxe8+ Qxe8 23. Rxd5 Rxd5 24. Qxd5+ Qf7 25. Qxf7+ Kxf7 26. Kf2 b5 27. Ke3 Ke6 28. Ke4 Bf6 29. Bb4 Bd8 30. g4 a5 31. Bc5 b4 32. Kd4 Bc7 33. Ke4 Bd8 34. Kd4 Bf6+ 35. Kc4 Bd8 36. Kd4 Bc7 37. Ke4 Bd8 38. f5+ gxf5+ 39. gxf5+ Kf7 40. Bd6 Be7 41. Bxe7 Kxe7 42. Kd5 a4 43. Kc4 b3 44. axb3 axb3 45. Kxb3 Kf6 46. Kc2 Kxf5 47. Kd2 Kf4 48. Ke2 Kg3 49. Kf1 Kxh3 50. Kg1 h5 51. Kh1 1/2-1/2

[Event "1st Turkish League 2017"]
[Site "Konya"]
[Date "2017.07.19"]
[Round "4"]
[White "Sahin, Hayrun Nisa"]
[Black "Saim, Sida"]
[Result "0-1"]
[ECO "B01"]
[WhiteElo "1576"]
[BlackElo "1634"]
[Annotator "NA"]
[PlyCount "56"]
[EventType "team-tourn"]
[EventCountry "TUR"]
[SourceTitle "playchess.com"]
[Source "ChessBase"]
[SourceQuality "1"]
[TimeControl "5400+30"]

1. e4 {[%emt 0:00:30]} d5 {[%emt 0:01:00]} 2. exd5 {[%emt 0:00:30]} Qxd5 {[%emt 0:00:30]} 3. Nc3 {[%emt 0:00:00]} Qd6 {[%emt 0:00:00]} 4. d4 {[%emt 0:01:00]} a6 {[%emt 0:01:00]} 5. g3 {[%emt 0:05:30]} Nf6 {[%emt 0:02:30]} 6. Bg2 {[%emt 0:01:30]} Bg4 {[%emt 0:03:30]} 7. Nge2 {[%emt 0:05:30]} Nc6 {[%emt 0:02:30]} 8. Be3 {[%emt 0:05:30]} O-O-O {[%emt 0:03:30]} 9. O-O {[%emt 0:09:30]} g6 {[%emt 0:04:30]} 10. a3 {[%emt 0:03:30]} Bg7 {[%emt 0:04:30]} 11. h3 {[%emt 0:05:30]} Bxe2 {[%emt 0:03:30]} 12. Nxe2 {[%emt 0:03:30]} e5 {[%emt 0:01:30]} 13. c3 {[%emt 0:05:30]} Nd5 {[%emt 0:01:30]} 14. Bxd5 {[%emt 0:10:30]} Qxd5 {[%emt 0:00:30]} 15. dxe5 {[%emt 0:01:30]} Qe6 {[%emt 0:08:30]} 16. Qc2 {[%emt 0:04:30]} Nxe5 {[%emt 0:00:30]} 17. Nf4 {[%emt 0:03:30]} Nf3+ {[%emt 0:01:30]} 18. Kh1 {[%emt 0:00:30]} Qc6 {[%emt 0:00:30]} 19. Ng2 {[%emt 0:00:30]} Qd7 {[%emt 0:05:30]} 20. Nf4 {[%emt 0:05:30]} Bh6 {[%emt 0:02:30]} 21. Rad1 {[%emt 0:01:30]} Qc6 {[%emt 0:00:30]} 22. Ng2 {[%emt 0:00:30]} Qe6 {[%emt 0:01:30]} 23. g4 {[%emt 0:00:30]} Qe5 {[%emt 0:00:30]} 24. Bf4 {[%emt 0:04:30]} Bxf4 {[%emt 0:00:30]} 25. Rd3 {[%emt 0:01:33]} Be3 {[%emt 0:02:30]} 26. Nf4 {[%emt 0:01:11]} Rxd3 {[%emt 0:00:30]} 27. fxe3 {[%emt 0:01:08]} Rxe3 {[%emt 0:00:30]} 28. Nd3 {[%emt 0:03:44]} Rxd3 {[%emt 0:00:30]} 0-1

[Event "1st Turkish League 2017"]
[Site "Konya"]
[Date "2017.07.20"]
[Round "5"]
[White "Nechaeva, Marina"]
[Black "Sahin, Handenur"]
[Result "1-0"]
[ECO "D12"]
[WhiteElo "2408"]
[BlackElo "1897"]
[Annotator "ChessBase"]
[PlyCount "101"]
[EventType "team-tourn"]
[EventCountry "TUR"]
[SourceTitle "playchess.com"]
[Source "ChessBase"]
[SourceQuality "1"]
[TimeControl "5400+30"]

1. d4 {[%emt 0:00:30]} d5 {[%emt 0:01:00]} 2. c4 {[%emt 0:00:30]} c6 {[%emt 0:00:30]} 3. Nc3 {[%emt 0:00:30]} Nf6 {[%emt 0:00:30]} 4. e3 {[%emt 0:00:30]} Bf5 {[%emt 0:00:00]} 5. Nf3 {[%emt 0:00:00]} e6 {[%emt 0:00:00]} 6. Nh4 {[%emt 0:01:00]} Bg6 {[%emt 0:00:00]} 7. Nxg6 {[%emt 0:00:30]} hxg6 {[%emt 0:00:00]} 8. Bd3 {[%emt 0:00:00]} Nbd7 {[%emt 0:00:30]} 9. O-O {[%emt 0:00:00]} Bd6 {[%emt 0:00:30]} 10. h3 {[%emt 0:00:00]} O-O {[%emt 0:01:30]} 11. Bd2 {[%emt 0:00:00]} a6 {[%emt 0:01:30]} 12. c5 {[%emt 0:00:30]} Bc7 {[%emt 0:01:30]} 13. f4 {[%emt 0:00:30]} b6 {[%emt 0:04:30]} 14. b4 {[%emt 0:01:30]} a5 {[%emt 0:03:30]} 15. cxb6 {[%emt 0:04:30]} Nxb6 {[%emt 0:07:30]} 16. bxa5 {[%emt 0:00:30]} Rxa5 {[%emt 0:00:30]} 17. a4 {[%emt 0:00:30]} Qa8 {[%emt 0:04:30]} 18. Qc2 {[%emt 0:01:30]} Rc8 {[%emt 0:02:30]} 19. Rfc1 {[%emt 0:11:30]} Bd8 {[%emt 0:09:30]} 20. Qd1 {[%emt 0:02:30]} Ne8 {[%emt 0:08:30]} 21. Kh1 {[%emt 0:20:30]} Nd6 {[%emt 0:14:30]} 22. Be1 {[%emt 0:00:30]} Ndc4 {[%emt 0:03:30]} 23. Qe2 {[%emt 0:00:00]} c5 {[%emt 0:03:30]} 24. dxc5 {[%emt 0:01:00]} Raxc5 {[%emt 0:00:30]} 25. e4 {[%emt 0:03:30]} Bf6 {[%emt 0:04:30]} 26. e5 {[%emt 0:09:30]} Be7 {[%emt 0:02:30]} 27. Rcb1 {[%emt 0:00:30]} Ra5 {[%emt 0:02:30]} 28. Bc2 {[%emt 0:00:00]} Rac5 {[%emt 0:03:30]} 29. Bd1 {[%emt 0:03:00]} Qc6 {[%emt 0:01:30]} 30. Nb5 {[%emt 0:00:30]} Qd7 {[%emt 0:02:13]} 31. Bf2 {[%emt 0:01:30]} d4 {[%emt 0:01:22]} 32. Nxd4 {[%emt 0:06:30]} Rd5 {[%emt 0:01:31]} 33. Nf3 {[%emt 0:06:30]} Bc5 {[%emt 0:03:53]} 34. a5 {[%emt 0:02:30]} Bxf2 {[%emt 0:01:16]} 35. Qxf2 {[%emt 0:00:30]} Na8 {[%emt 0:00:00]} 36. Bb3 {[%emt 0:00:30]} Qc7 {[%emt 0:02:25]} 37. Bxc4 {[%emt 0:04:41]} Qxc4 {[%emt 0:00:03]} 38. Ng5 {[%emt 0:00:19]} Nc7 {[%emt 0:03:38]} 39. Rc1 {[%emt 0:01:34]} Qb5 {[%emt 0:02:53]} 40. Qh4 {[%emt 0:00:55]} Qe8 {[%emt 0:01:25]} 41. Qh7+ {[%emt 0:00:44]} Kf8 {[%emt 0:00:30]} 42. Qh8+ {[%emt 0:00:30]} Ke7 {[%emt 0:00:30]} 43. Qxg7 {[%emt 0:00:00]} Qf8 {[%emt 0:00:11]} 44. Qxf8+ {[%emt 0:01:27]} Kxf8 {[%emt 0:00:02]} 45. Ne4 {[%emt 0:00:11]} Ke7 {[%emt 0:01:40]} 46. Rc2 {[%emt 0:02:26]} Kd8 {[%emt 0:01:36]} 47. Rac1 {[%emt 0:00:15]} Rxa5 {[%emt 0:00:37]} 48. Nd6 {[%emt 0:00:05]} Ra7 {[%emt 0:00:21]} 49. Rd1 {[%emt 0:02:02]} Rb8 {[%emt 0:01:02]} 50. Nb5+ {[%emt 0:00:36]} Nd5 {[%emt 0:00:30]} 51. Nxa7 {[%emt 0:00:00]} 1-0

[Event "1st Turkish League 2017"]
[Site "Konya"]
[Date "2017.07.20"]
[Round "5"]
[White "Koksal, Ege"]
[Black "Erdogan, Anil Berk"]
[Result "1/2-1/2"]
[ECO "A61"]
[WhiteElo "2390"]
[BlackElo "2088"]
[Annotator "NA RC"]
[PlyCount "60"]
[EventType "team-tourn"]
[EventCountry "TUR"]
[SourceTitle "playchess.com"]
[Source "ChessBase"]
[SourceQuality "1"]
[TimeControl "5400+30"]

1. d4 {[%emt 0:00:30]} Nf6 {[%emt 0:01:00]} 2. Nf3 {[%emt 0:00:30]} c5 {[%emt 0:00:00]} 3. d5 {[%emt 0:08:30]} e6 {[%emt 0:00:00]} 4. c4 {[%emt 0:00:30]} exd5 {[%emt 0:00:30]} 5. cxd5 {[%emt 0:00:30]} d6 {[%emt 0:00:30]} 6. Nc3 {[%emt 0:00:00]} g6 {[%emt 0:00:00]} 7. Bf4 {[%emt 0:00:00]} a6 {[%emt 0:01:00]} 8. a4 {[%emt 0:00:00]} Bg7 {[%emt 0:00:30]} 9. h3 {[%emt 0:00:00]} O-O {[%emt 0:00:30]} 10. e3 {[%emt 0:00:00]} Ne8 {[%emt 0:00:00]} 11. Be2 {[%emt 0:00:00]} Nd7 {[%emt 0:00:00]} 12. O-O {[%emt 0:00:30]} Rb8 {[%emt 0:01:30]} 13. Bh2 {[%emt 0:02:30]} f5 {[%emt 0:04:30]} 14. Qc2 {[%emt 0:00:30]} Qe7 {[%emt 0:03:30]} 15. a5 {[%emt 0:00:30]} Ne5 {[%emt 0:08:30]} 16. Nd2 {[%emt 0:00:00]} Nc7 {[%emt 0:06:30]} 17. Rae1 {[%emt 0:11:00]} Re8 $14 {[%emt 0:15:30]} 18. e4 {[%emt 0:17:30]} fxe4 {[%emt 0:17:30]} 19. Ndxe4 {[%emt 0:00:00]} Bf5 {[%emt 0:00:30]} 20. Qd2 {[%emt 0:08:00]} b5 {[%emt 0:11:30]} 21. Kh1 {[%emt 0:20:30]} Kh8 {[%emt 0:00:30]} 22. Kg1 {[%emt 0:00:30]} Kg8 {[%emt 0:00:30]} 23. Kh1 {[%emt 0:00:30]} Kh8 {[%emt 0:00:30]} 24. Kg1 {[%emt 0:00:30]} Kg8 {[%emt 0:00:30]} 25. Kh1 {[%emt 0:00:30]} Kh8 {[%emt 0:00:30]} 26. Kg1 {[%emt 0:00:30]} Kg8 {[%emt 0:00:00]} 27. Kh1 {[%emt 0:00:00]} Kh8 {[%emt 0:00:00]} 28. Kg1 {[%emt 0:00:00]} Kg8 {[%emt 0:00:00]} 29. Kh1 {[%emt 0:00:00]} Kh8 {[%emt 0:00:00]} 30. Kg1 {[%emt 0:00:00]} Kg8 {[%emt 0:00:00]} 1/2-1/2

[Event "1st Turkish League 2017"]
[Site "Konya"]
[Date "2017.07.20"]
[Round "5"]
[White "Erturan, Yakup"]
[Black "Korkmaz, Necmettin"]
[Result "1-0"]
[ECO "D11"]
[WhiteElo "2371"]
[BlackElo "2078"]
[Annotator "ChessBase"]
[PlyCount "82"]
[EventType "team-tourn"]
[EventCountry "TUR"]
[SourceTitle "playchess.com"]
[Source "ChessBase"]
[SourceQuality "1"]
[TimeControl "5400+30"]

1. d4 {[%emt 0:00:30]} d5 {[%emt 0:01:00]} 2. Nf3 {[%emt 0:00:30]} Nf6 {[%emt 0:00:30]} 3. g3 {[%emt 0:00:00]} Bf5 {[%emt 0:01:30]} 4. Bg2 {[%emt 0:00:00]} e6 {[%emt 0:00:30]} 5. O-O {[%emt 0:00:30]} Be7 {[%emt 0:01:30]} 6. c4 {[%emt 0:00:30]} c6 {[%emt 0:00:30]} 7. Nc3 {[%emt 0:00:30]} h6 {[%emt 0:00:30]} 8. Qb3 {[%emt 0:11:30]} Qb6 {[%emt 0:02:30]} 9. c5 {[%emt 0:00:30]} Qc7 {[%emt 0:09:30]} 10. Bf4 {[%emt 0:00:30]} Qc8 {[%emt 0:00:30]} 11. Nd2 {[%emt 0:00:30]} O-O {[%emt 0:02:30]} 12. e4 {[%emt 0:08:30]} Nxe4 {[%emt 0:07:30]} 13. Ndxe4 {[%emt 0:06:30]} dxe4 {[%emt 0:01:30]} 14. Bxe4 {[%emt 0:00:30]} Bxe4 {[%emt 0:08:30]} 15. Nxe4 {[%emt 0:00:30]} Rd8 {[%emt 0:06:30]} 16. Bd6 {[%emt 0:04:30]} Bxd6 {[%emt 0:05:30]} 17. Nxd6 {[%emt 0:00:30]} Qc7 {[%emt 0:00:00]} 18. f4 {[%emt 0:05:30]} Na6 {[%emt 0:06:00]} 19. Qc4 {[%emt 0:24:30]} Rxd6 {[%emt 0:05:30]} 20. cxd6 {[%emt 0:00:30]} Qxd6 {[%emt 0:00:00]} 21. f5 {[%emt 0:00:30]} Nc7 {[%emt 0:04:00]} 22. Qc5 {[%emt 0:06:30]} Qxc5 {[%emt 0:09:30]} 23. dxc5 {[%emt 0:00:30]} exf5 {[%emt 0:01:30]} 24. Rxf5 {[%emt 0:03:30]} Rd8 {[%emt 0:00:30]} 25. Re1 {[%emt 0:06:07]} Ne6 {[%emt 0:03:30]} 26. Re3 {[%emt 0:02:36]} Rd7 {[%emt 0:03:36]} 27. Kg2 {[%emt 0:05:12]} g6 {[%emt 0:03:08]} 28. Rfe5 {[%emt 0:00:59]} Kf8 {[%emt 0:00:29]} 29. b4 {[%emt 0:00:18]} Rd2+ {[%emt 0:03:40]} 30. Re2 {[%emt 0:00:30]} Rd4 {[%emt 0:00:30]} 31. R5e4 {[%emt 0:00:00]} Rd5 {[%emt 0:00:00]} 32. Kf2 {[%emt 0:00:33]} Rd3 {[%emt 0:01:59]} 33. Ke1 {[%emt 0:01:27]} Nd4 {[%emt 0:04:28]} 34. Re8+ {[%emt 0:00:30]} Kg7 {[%emt 0:00:07]} 35. R2e7 {[%emt 0:00:21]} Ra3 {[%emt 0:07:24]} 36. Rxb7 {[%emt 0:00:43]} Rxa2 {[%emt 0:00:49]} 37. Ree7 {[%emt 0:00:17]} Nf3+ {[%emt 0:01:17]} 38. Kd1 {[%emt 0:00:07]} Ra1+ {[%emt 0:00:55]} 39. Kc2 {[%emt 0:00:29]} Ne1+ {[%emt 0:00:32]} 40. Kb2 {[%emt 0:00:30]} Rd1 {[%emt 0:00:30]} 41. Rxf7+ {[%emt 0:00:04]} Kg8 {[%emt 0:00:00]} 1-0

[Event "1st Turkish League 2017"]
[Site "Konya"]
[Date "2017.07.20"]
[Round "5"]
[White "Bashirli, Nail"]
[Black "Isik, Alparslan"]
[Result "0-1"]
[ECO "B92"]
[WhiteElo "2352"]
[BlackElo "2211"]
[Annotator "ChessBase"]
[PlyCount "140"]
[EventType "team-tourn"]
[EventCountry "TUR"]
[SourceTitle "playchess.com"]
[Source "ChessBase"]
[SourceQuality "1"]
[TimeControl "5400+30"]

1. e4 {[%emt 0:00:30]} c5 {[%emt 0:01:00]} 2. Nf3 {[%emt 0:00:00]} d6 {[%emt 0:00:00]} 3. d4 {[%emt 0:00:00]} cxd4 {[%emt 0:00:00]} 4. Nxd4 {[%emt 0:00:30]} Nf6 {[%emt 0:00:30]} 5. Nc3 {[%emt 0:00:30]} a6 {[%emt 0:00:30]} 6. Be2 {[%emt 0:00:00]} e5 {[%emt 0:00:00]} 7. Nb3 {[%emt 0:01:00]} Be7 {[%emt 0:02:00]} 8. Be3 {[%emt 0:02:30]} Be6 {[%emt 0:01:30]} 9. O-O {[%emt 0:01:30]} O-O {[%emt 0:00:30]} 10. Kh1 {[%emt 0:00:30]} Nbd7 {[%emt 0:07:30]} 11. f4 {[%emt 0:00:30]} exf4 {[%emt 0:04:30]} 12. Bxf4 {[%emt 0:00:30]} Ne5 {[%emt 0:00:30]} 13. Nd4 {[%emt 0:00:00]} Qb6 {[%emt 0:06:30]} 14. Nd5 {[%emt 0:04:00]} Nxd5 {[%emt 0:09:30]} 15. exd5 {[%emt 0:00:30]} Bd7 {[%emt 0:00:00]} 16. c4 {[%emt 0:08:30]} Bf6 {[%emt 0:03:00]} 17. Nb3 {[%emt 0:02:30]} Rac8 {[%emt 0:03:30]} 18. Rc1 {[%emt 0:02:30]} Ng6 {[%emt 0:02:30]} 19. Bg3 {[%emt 0:07:30]} Bxb2 {[%emt 0:02:30]} 20. Rc2 {[%emt 0:11:30]} Be5 {[%emt 0:01:30]} 21. Bf2 {[%emt 0:01:30]} Qd8 {[%emt 0:03:30]} 22. c5 {[%emt 0:04:30]} Qg5 {[%emt 0:08:30]} 23. Bg1 {[%emt 0:07:30]} Nh4 {[%emt 0:08:30]} 24. Bd3 {[%emt 0:03:30]} Bg4 {[%emt 0:05:30]} 25. Be2 {[%emt 0:03:30]} Bf5 {[%emt 0:03:30]} 26. Bd3 {[%emt 0:00:00]} Bg4 {[%emt 0:01:30]} 27. Qc1 {[%emt 0:04:00]} Qh5 {[%emt 0:02:30]} 28. c6 {[%emt 0:05:30]} bxc6 {[%emt 0:04:06]} 29. dxc6 {[%emt 0:00:30]} Nf5 {[%emt 0:00:46]} 30. Bxf5 {[%emt 0:00:30]} Bxf5 {[%emt 0:00:04]} 31. Rd2 {[%emt 0:04:30]} Be4 {[%emt 0:00:58]} 32. Nd4 {[%emt 0:04:30]} Bxd4 {[%emt 0:01:11]} 33. Bxd4 {[%emt 0:00:00]} Rxc6 {[%emt 0:00:47]} 34. Qa3 {[%emt 0:01:00]} d5 {[%emt 0:01:16]} 35. h3 {[%emt 0:01:30]} Qg5 {[%emt 0:02:43]} 36. Rff2 {[%emt 0:00:30]} Rfc8 {[%emt 0:01:30]} 37. Kh2 {[%emt 0:00:00]} h5 {[%emt 0:01:19]} 38. Be3 {[%emt 0:02:32]} Qg6 {[%emt 0:00:45]} 39. Bf4 {[%emt 0:05:22]} Rc2 {[%emt 0:00:59]} 40. Qe7 {[%emt 0:00:32]} Rxd2 {[%emt 0:00:30]} 41. Rxd2 {[%emt 0:00:04]} Kh7 {[%emt 0:01:58]} 42. Qe5 {[%emt 0:01:00]} Rc6 {[%emt 0:01:39]} 43. Bg3 {[%emt 0:02:48]} f6 {[%emt 0:02:57]} 44. Qd4 {[%emt 0:00:38]} Qf5 {[%emt 0:00:23]} 45. Rf2 {[%emt 0:00:13]} Qe6 {[%emt 0:00:19]} 46. Qd1 {[%emt 0:00:01]} Qf7 {[%emt 0:01:45]} 47. Qa4 {[%emt 0:00:43]} Qd7 {[%emt 0:01:06]} 48. Qd1 {[%emt 0:00:43]} Bg6 {[%emt 0:00:17]} 49. Rd2 {[%emt 0:00:01]} Rc5 {[%emt 0:00:43]} 50. Bf2 {[%emt 0:02:10]} Qc7+ {[%emt 0:01:13]} 51. Bg3 {[%emt 0:00:30]} Qc6 {[%emt 0:00:30]} 52. Qf3 {[%emt 0:00:05]} Ra5 {[%emt 0:00:11]} 53. Re2 {[%emt 0:01:18]} Qd7 {[%emt 0:00:48]} 54. Rd2 {[%emt 0:01:45]} d4 {[%emt 0:00:30]} 55. Bf4 {[%emt 0:02:35]} d3 {[%emt 0:00:30]} 56. Qe3 {[%emt 0:00:00]} Qd5 {[%emt 0:00:42]} 57. Qf2 {[%emt 0:00:06]} Rc5 {[%emt 0:00:09]} 58. a3 {[%emt 0:00:36]} Rc2 {[%emt 0:00:42]} 59. Qe1 {[%emt 0:01:36]} Qa5 {[%emt 0:00:48]} 60. Re2 {[%emt 0:01:59]} Qxa3 {[%emt 0:01:06]} 61. Re3 {[%emt 0:01:31]} Qa2 {[%emt 0:00:43]} 62. Rg3 {[%emt 0:01:37]} Re2 {[%emt 0:00:33]} 63. Qg1 {[%emt 0:02:31]} Be4 {[%emt 0:00:39]} 64. h4 {[%emt 0:00:05]} Qd5 {[%emt 0:01:18]} 65. Qa7 {[%emt 0:00:29]} Rxg2+ {[%emt 0:00:13]} 66. Rxg2 {[%emt 0:01:24]} Bxg2 {[%emt 0:00:02]} 67. Bd2 {[%emt 0:00:03]} Bf1 {[%emt 0:00:41]} 68. Qf2 {[%emt 0:00:30]} Be2 {[%emt 0:00:23]} 69. Kg3 {[%emt 0:00:02]} a5 {[%emt 0:00:56]} 70. Qf4 {[%emt 0:00:06]} a4 {[%emt 0:00:32]} 0-1

[Event "1st Turkish League 2017"]
[Site "Konya"]
[Date "2017.07.20"]
[Round "5"]
[White "Khukhashvili, Sopiko"]
[Black "Gokbulut, Julia"]
[Result "1-0"]
[ECO "B42"]
[WhiteElo "2339"]
[BlackElo "1997"]
[Annotator "NA"]
[PlyCount "63"]
[EventType "team-tourn"]
[EventCountry "TUR"]
[SourceTitle "playchess.com"]
[Source "ChessBase"]
[SourceQuality "1"]
[TimeControl "5400+30"]

1. e4 {[%emt 0:00:30]} c5 {[%emt 0:01:00]} 2. Nf3 {[%emt 0:00:30]} e6 {[%emt 0:00:30]} 3. d4 {[%emt 0:00:30]} cxd4 {[%emt 0:00:00]} 4. Nxd4 {[%emt 0:00:00]} a6 {[%emt 0:00:00]} 5. Bd3 {[%emt 0:00:00]} Bc5 {[%emt 0:00:00]} 6. Nb3 {[%emt 0:00:00]} Be7 {[%emt 0:00:00]} 7. Nc3 {[%emt 0:00:00]} Nc6 {[%emt 0:00:30]} 8. Qe2 {[%emt 0:00:30]} d6 {[%emt 0:00:30]} 9. f4 {[%emt 0:00:00]} Qc7 {[%emt 0:00:30]} 10. O-O {[%emt 0:00:00]} Nf6 {[%emt 0:01:30]} 11. Bd2 {[%emt 0:00:30]} b5 {[%emt 0:03:30]} 12. a3 {[%emt 0:00:00]} O-O {[%emt 0:06:30]} 13. Kh1 {[%emt 0:03:00]} Bb7 {[%emt 0:05:30]} 14. Rae1 {[%emt 0:00:30]} Rfe8 {[%emt 0:05:30] B33: Sicilian: Pelikan and Sveshnikov Variations} (14... b4 15. Nd1 a5 16. a4 Nd7 17. Ne3 Rfe8 18. Qh5 Bf8 19. Qh3 g6 20. Ng4 h5 21. Ne3 Bg7 22. Bc4 {0-1 (41) Novik,M (2467)-Alekseev,E (2698) St Petersburg 2013}) 15. e5 {[%emt 0:09:30]} Nd7 {[%emt 0:00:30]} 16. exd6 {[%emt 0:00:30]} Bxd6 {[%emt 0:01:30]} 17. Ne4 {[%emt 0:00:00]} Bf8 {[%emt 0:05:30]} 18. Bc3 {[%emt 0:13:00] [#]} h6 $146 {[%emt 0:04:30]} ({Predecessor:} 18... b4 19. Ng5 h6 20. Qh5 Nf6 {½-½ (20) Tristan,L (2317)-Felgaer,R (2556) Berazategui 2007}) 19. Qh5 {[%emt 0:08:30]} Nd8 {[%emt 0:11:30]} 20. Re3 {[%emt 0:04:30]} e5 {[%emt 0:18:30]} 21. Qf5 {[%emt 0:13:30]} Qc6 {[%emt 0:10:30]} 22. fxe5 $18 {[%emt 0:06:30]} Qe6 {[%emt 0:04:30]} 23. Qf2 {[%emt 0:00:30]} Rc8 {[%emt 0:04:15]} 24. Nd4 {[%emt 0:03:30]} Qd5 {[%emt 0:02:50]} 25. Nf5 {[%emt 0:00:00]} Rxc3 {[%emt 0:06:02]} 26. Nxc3 {[%emt 0:01:00]} Qe6 {[%emt 0:02:07]} 27. Nd4 {[%emt 0:00:30]} Qb6 {[%emt 0:01:56]} 28. Qf5 {[%emt 0:00:30]} Qg6 {[%emt 0:00:57]} 29. Qh3 {[%emt 0:01:30]} Qg5 {[%emt 0:00:48]} 30. Rg3 {[%emt 0:00:00]} Qxe5 {[%emt 0:00:45]} 31. Qxd7 {[%emt 0:00:00]} h5 {[%emt 0:02:18]} 32. Qf5 {[%emt 0:00:30]} 1-0

[Event "1st Turkish League 2017"]
[Site "Konya"]
[Date "2017.07.20"]
[Round "5"]
[White "Kilic, Efe Mert"]
[Black "Cansun, Can Alp"]
[Result "1-0"]
[ECO "B42"]
[WhiteElo "2287"]
[BlackElo "1959"]
[Annotator "NA RC"]
[PlyCount "73"]
[EventType "team-tourn"]
[EventCountry "TUR"]
[SourceTitle "playchess.com"]
[Source "ChessBase"]
[SourceQuality "1"]
[TimeControl "5400+30"]

1. e4 {[%emt 0:00:30]} c5 {[%emt 0:01:00]} 2. Nf3 {[%emt 0:00:30]} e6 {[%emt 0:00:00]} 3. d4 {[%emt 0:00:30]} cxd4 {[%emt 0:00:00]} 4. Nxd4 {[%emt 0:00:30]} a6 {[%emt 0:00:30]} 5. Bd3 {[%emt 0:00:00]} Nf6 {[%emt 0:00:00]} 6. O-O {[%emt 0:00:00]} Qc7 {[%emt 0:00:00]} 7. c4 {[%emt 0:01:30]} Nc6 {[%emt 0:00:30]} 8. Be3 {[%emt 0:06:30]} d6 {[%emt 0:03:30]} 9. Nc3 {[%emt 0:01:30]} Be7 {[%emt 0:01:30]} 10. Qe2 {[%emt 0:01:30]} O-O {[%emt 0:03:30]} 11. f4 {[%emt 0:03:30]} Re8 {[%emt 0:10:30]} 12. Rac1 {[%emt 0:13:30]} Bf8 {[%emt 0:13:30]} 13. h3 $16 {[%emt 0:06:30]} e5 {[%emt 0:33:30]} 14. Nb3 {[%emt 0:03:30]} exf4 {[%emt 0:00:30]} 15. Rxf4 {[%emt 0:00:30]} Ne5 {[%emt 0:01:30]} 16. Rxf6 {[%emt 0:01:30]} gxf6 {[%emt 0:00:30]} 17. Nd5 {[%emt 0:00:00]} Nxd3 {[%emt 0:26:27]} 18. Nxc7 {[%emt 0:01:00]} Nxc1 {[%emt 0:00:05]} 19. Nxc1 {[%emt 0:00:30]} Be6 {[%emt 0:00:30]} 20. Nxa8 {[%emt 0:00:30]} Rxa8 {[%emt 0:00:00]} 21. b3 {[%emt 0:00:30]} Re8 {[%emt 0:00:00]} 22. Bd4 {[%emt 0:00:30]} Bh6 {[%emt 0:02:34]} 23. Nd3 {[%emt 0:00:00]} Bf5 {[%emt 0:01:14]} 24. Qh5 {[%emt 0:02:00]} Rxe4 {[%emt 0:00:37]} 25. Qxh6 {[%emt 0:00:00]} Rxd4 {[%emt 0:00:33]} 26. Qxf6 {[%emt 0:00:00]} Rxd3 {[%emt 0:00:30]} 27. Qxf5 {[%emt 0:00:30]} Rd1+ {[%emt 0:00:30]} 28. Kh2 {[%emt 0:00:00]} Ra1 {[%emt 0:00:00]} 29. Qc2 {[%emt 0:01:00]} a5 {[%emt 0:00:33]} 30. h4 {[%emt 0:00:00]} Rf1 {[%emt 0:00:47]} 31. h5 {[%emt 0:00:00]} Rf6 {[%emt 0:00:48]} 32. Qe4 {[%emt 0:00:30]} b6 {[%emt 0:00:15]} 33. Qd4 {[%emt 0:00:30]} Kg7 {[%emt 0:00:35]} 34. Qxb6 {[%emt 0:00:30]} Rf5 {[%emt 0:00:37]} 35. g4 {[%emt 0:00:30]} Rg5 {[%emt 0:00:00]} 36. Kg3 {[%emt 0:00:30]} d5 {[%emt 0:00:40]} 37. h6+ {[%emt 0:00:00]} 1-0